[Event "*** Titled Tuesday Blitz"]
[Site "Chess.com"]
[Date "2020.05.05"]
[Round "4"]
[White "rogapa"]
[Black "Oleksandr_Bortnyk"]
[Result "0-1"]
[WhiteElo "2699"]
[BlackElo "2995"]
[TimeControl "180+1"]
[EndTime "10:40:55 PDT"]
[Termination "Oleksandr_Bortnyk won by checkmate"]

1. e4 {[%clk 0:03:00.3]} 1... Nf6 {[%clk 0:02:59.5]} 2. e5 {[%clk 0:03:00]} 2...
Nd5 {[%clk 0:03:00]} 3. d4 {[%clk 0:03:00.9]} 3... d6 {[%clk 0:03:00.5]} 4. Nf3
{[%clk 0:03:01.8]} 4... dxe5 {[%clk 0:03:01.2]} 5. Nxe5 {[%clk 0:03:01]} 5... c6
{[%clk 0:03:01.7]} 6. Be2 {[%clk 0:02:58.6]} 6... Bf5 {[%clk 0:03:02]} 7. O-O
{[%clk 0:02:58.4]} 7... Nd7 {[%clk 0:03:02.6]} 8. Nf3 {[%clk 0:02:54.9]} 8... e6
{[%clk 0:03:03.2]} 9. c4 {[%clk 0:02:52.9]} 9... N5f6 {[%clk 0:03:03.8]} 10. Nc3
{[%clk 0:02:52.6]} 10... Bd6 {[%clk 0:03:03.6]} 11. h3 {[%clk 0:02:52.6]} 11...
O-O {[%clk 0:03:04.1]} 12. Be3 {[%clk 0:02:52.3]} 12... h6 {[%clk 0:03:02.4]}
13. Re1 {[%clk 0:02:48.1]} 13... Re8 {[%clk 0:03:02.2]} 14. Bf1 {[%clk 0:02:48]}
14... Qc7 {[%clk 0:03:02.5]} 15. Qd2 {[%clk 0:02:47.7]} 15... Rad8 {[%clk
0:02:44.4]} 16. Rad1 {[%clk 0:02:46.5]} 16... e5 {[%clk 0:02:41.1]} 17. dxe5
{[%clk 0:02:41]} 17... Nxe5 {[%clk 0:02:42]} 18. Nxe5 {[%clk 0:02:41.6]} 18...
Bxe5 {[%clk 0:02:40.6]} 19. Qc1 {[%clk 0:02:40.9]} 19... Rxd1 {[%clk 0:02:34.4]}
20. Rxd1 {[%clk 0:02:39.8]} 20... b6 {[%clk 0:02:24.5]} 21. Bd3 {[%clk
0:02:33.1]} 21... Bxd3 {[%clk 0:02:04]} 22. Rxd3 {[%clk 0:02:34]} 22... Qe7
{[%clk 0:02:04.9]} 23. a3 {[%clk 0:02:13.2]} 23... Qe6 {[%clk 0:02:01.8]} 24. b3
{[%clk 0:02:08.7]} 24... Qf5 {[%clk 0:01:30.3]} 25. Qd1 {[%clk 0:02:06.7]} 25...
g5 {[%clk 0:01:14.1]} 26. Bd4 {[%clk 0:01:56.2]} 26... Bf4 {[%clk 0:01:04.5]}
27. g3 {[%clk 0:01:47.2]} 27... Be5 {[%clk 0:00:43.8]} 28. Rf3 {[%clk
0:01:29.9]} 28... Qg6 {[%clk 0:00:35.3]} 29. Bxe5 {[%clk 0:01:17]} 29... Rxe5
{[%clk 0:00:36.2]} 30. Qd6 {[%clk 0:01:13.3]} 30... Re6 {[%clk 0:00:33.2]} 31.
Qb8+ {[%clk 0:01:08]} 31... Kg7 {[%clk 0:00:32.9]} 32. Qxa7 {[%clk 0:01:06.9]}
32... Qc2 {[%clk 0:00:18.6]} 33. Qxb6 {[%clk 0:00:53.1]} 33... Re1+ {[%clk
0:00:18.6]} 34. Kg2 {[%clk 0:00:53]} 34... Qc1 {[%clk 0:00:19.5]} 35. Re3 {[%clk
0:00:39.4]} 35... Rg1+ {[%clk 0:00:19.9]} 36. Kf3 {[%clk 0:00:39.4]} 36... Qf1
{[%clk 0:00:17.6]} 37. Qd4 {[%clk 0:00:34.6]} 37... Qxh3 {[%clk 0:00:16.8]} 38.
Re2 {[%clk 0:00:15.2]} 38... Qf5+ {[%clk 0:00:15.2]} 39. Ke3 {[%clk 0:00:14.1]}
39... c5 {[%clk 0:00:15.7]} 40. Qd6 {[%clk 0:00:11.2]} 40... Rc1 {[%clk
0:00:13.5]} 41. Nd5 {[%clk 0:00:08.7]} 41... Ng4+ {[%clk 0:00:13.6]} 42. Kd2
{[%clk 0:00:07.9]} 42... Qc2# {[%clk 0:00:14.5]} 0-1

[Event "*** Titled Tuesday Blitz"]
[Site "Chess.com"]
[Date "2020.05.05"]
[Round "4"]
[White "Rodalquilar"]
[Black "VerdeNotte"]
[Result "0-1"]
[WhiteElo "2636"]
[BlackElo "2846"]
[TimeControl "180+1"]
[EndTime "10:40:55 PDT"]
[Termination "VerdeNotte won on time"]

1. d4 {[%clk 0:03:00.9]} 1... Nf6 {[%clk 0:02:53.6]} 2. c4 {[%clk 0:02:58.5]}
2... g6 {[%clk 0:02:53.8]} 3. Nc3 {[%clk 0:02:58.7]} 3... Bg7 {[%clk 0:02:54.1]}
4. e4 {[%clk 0:02:58.7]} 4... d6 {[%clk 0:02:54.6]} 5. Nf3 {[%clk 0:02:57.5]}
5... O-O {[%clk 0:02:54.8]} 6. Be2 {[%clk 0:02:57.6]} 6... Nbd7 {[%clk
0:02:54.8]} 7. Be3 {[%clk 0:02:57]} 7... e5 {[%clk 0:02:54.6]} 8. d5 {[%clk
0:02:57.3]} 8... Ng4 {[%clk 0:02:54.9]} 9. Bg5 {[%clk 0:02:57.3]} 9... f6 {[%clk
0:02:55]} 10. Bh4 {[%clk 0:02:57.5]} 10... h5 {[%clk 0:02:52.3]} 11. Nd2 {[%clk
0:02:57.3]} 11... Nh6 {[%clk 0:02:50.6]} 12. f3 {[%clk 0:02:56.4]} 12... a5
{[%clk 0:02:49]} 13. Qc2 {[%clk 0:02:50.1]} 13... Nc5 {[%clk 0:02:48.7]} 14. h3
{[%clk 0:02:48]} 14... g5 {[%clk 0:02:43.2]} 15. Bf2 {[%clk 0:02:48]} 15... h4
{[%clk 0:02:37.5]} 16. b3 {[%clk 0:02:47.2]} 16... Bd7 {[%clk 0:02:34.8]} 17. a3
{[%clk 0:02:46.9]} 17... b6 {[%clk 0:02:30.9]} 18. Rb1 {[%clk 0:02:46.6]} 18...
f5 {[%clk 0:02:28.2]} 19. b4 {[%clk 0:02:22.5]} 19... axb4 {[%clk 0:02:25]} 20.
axb4 {[%clk 0:02:23.4]} 20... Na6 {[%clk 0:02:24.8]} 21. c5 {[%clk 0:02:06]}
21... bxc5 {[%clk 0:02:20.1]} 22. Bxa6 {[%clk 0:02:06]} 22... cxb4 {[%clk
0:02:12.4]} 23. Nb5 {[%clk 0:01:49]} 23... Rxa6 {[%clk 0:02:09]} 24. Nxc7 {[%clk
0:01:49]} 24... Qc8 {[%clk 0:02:01.8]} 25. Qc4 {[%clk 0:01:40]} 25... Ra4 {[%clk
0:01:41]} 26. O-O {[%clk 0:00:56.7]} 26... Bf6 {[%clk 0:01:19]} 27. Rfc1 {[%clk
0:00:55.6]} 27... g4 {[%clk 0:01:11.4]} 28. hxg4 {[%clk 0:00:46.7]} 28... fxg4
{[%clk 0:01:11]} 29. Be3 {[%clk 0:00:34.4]} 29... Nf7 {[%clk 0:01:04]} 30. Rxb4
{[%clk 0:00:26.3]} 30... Ra3 {[%clk 0:00:54.2]} 31. Rb3 {[%clk 0:00:24.4]} 31...
Rxb3 {[%clk 0:00:42.2]} 32. Qxb3 {[%clk 0:00:09]} 32... Bg5 {[%clk 0:00:35.3]}
33. Bxg5 {[%clk 0:00:07.5]} 33... Nxg5 {[%clk 0:00:35.5]} 34. Qe3 {[%clk
0:00:08.2]} 34... Rf4 {[%clk 0:00:32.8]} 35. Rc3 {[%clk 0:00:04.8]} 35... Qf8
{[%clk 0:00:20.3]} 36. Ne6 {[%clk 0:00:02.3]} 36... Nxe6 {[%clk 0:00:19]} 37.
dxe6 {[%clk 0:00:03.2]} 37... Bxe6 {[%clk 0:00:19.5]} 38. Rc7 {[%clk 0:00:01.8]}
38... h3 {[%clk 0:00:17.5]} 39. gxh3 {[%clk 0:00:01.7]} 39... gxf3 {[%clk
0:00:17.7]} 40. Kf2 {[%clk 0:00:02.6]} 40... Qh6 {[%clk 0:00:15.9]} 41. Qe1
{[%clk 0:00:01.8]} 41... Qh4+ {[%clk 0:00:15.7]} 42. Kf1 {[%clk 0:00:02.2]}
42... Bxh3+ {[%clk 0:00:15.8]} 0-1

[Event "*** Titled Tuesday Blitz"]
[Site "Chess.com"]
[Date "2020.05.05"]
[Round "4"]
[White "smshk35"]
[Black "SoltaniciR"]
[Result "1-0"]
[WhiteElo "2394"]
[BlackElo "2591"]
[TimeControl "180+1"]
[EndTime "10:40:55 PDT"]
[Termination "smshk35 won by checkmate"]

1. e4 {[%clk 0:03:00.9]} 1... c5 {[%clk 0:02:57]} 2. Nf3 {[%clk 0:03:00.6]} 2...
d6 {[%clk 0:02:56.1]} 3. c3 {[%clk 0:02:57.7]} 3... Nf6 {[%clk 0:02:55.4]} 4.
Be2 {[%clk 0:02:56.4]} 4... Bg4 {[%clk 0:02:50.9]} 5. O-O {[%clk 0:02:46.1]}
5... e6 {[%clk 0:02:50.7]} 6. h3 {[%clk 0:02:40.7]} 6... Bh5 {[%clk 0:02:49.9]}
7. e5 {[%clk 0:02:36]} 7... dxe5 {[%clk 0:02:47.5]} 8. Nxe5 {[%clk 0:02:36.3]}
8... Bxe2 {[%clk 0:02:46.2]} 9. Qxe2 {[%clk 0:02:37.2]} 9... Nbd7 {[%clk
0:02:32.6]} 10. d4 {[%clk 0:02:19.4]} 10... cxd4 {[%clk 0:02:25.9]} 11. cxd4
{[%clk 0:02:20.3]} 11... Be7 {[%clk 0:02:25.4]} 12. Qb5 {[%clk 0:02:07.4]} 12...
Qb6 {[%clk 0:02:22.1]} 13. Qd3 {[%clk 0:02:06.1]} 13... O-O {[%clk 0:02:17.7]}
14. Be3 {[%clk 0:02:04.8]} 14... Qxb2 {[%clk 0:02:01.1]} 15. Nc3 {[%clk
0:01:56.2]} 15... Rac8 {[%clk 0:01:59.3]} 16. Rfc1 {[%clk 0:01:38.2]} 16... Nxe5
{[%clk 0:01:23.3]} 17. dxe5 {[%clk 0:01:22]} 17... Rfd8 {[%clk 0:01:23.1]} 18.
Qb5 {[%clk 0:01:02.9]} 18... Qxb5 {[%clk 0:00:52.6]} 19. Nxb5 {[%clk 0:01:03.8]}
19... Nd5 {[%clk 0:00:36.1]} 20. Bxa7 {[%clk 0:00:58.6]} 20... b6 {[%clk
0:00:33.7]} 21. a4 {[%clk 0:00:54.7]} 21... Bb4 {[%clk 0:00:25.6]} 22. Rab1
{[%clk 0:00:38.4]} 22... Ba5 {[%clk 0:00:16.1]} 23. Nd6 {[%clk 0:00:36.5]} 23...
Ra8 {[%clk 0:00:14.4]} 24. Nb7 {[%clk 0:00:36.7]} 24... Rf8 {[%clk 0:00:08.4]}
25. Nxa5 {[%clk 0:00:32.8]} 25... Rxa7 {[%clk 0:00:08.6]} 26. Nc4 {[%clk
0:00:31.1]} 26... Rxa4 {[%clk 0:00:08.2]} 27. Nxb6 {[%clk 0:00:31.3]} 27... Nxb6
{[%clk 0:00:06.8]} 28. Rxb6 {[%clk 0:00:32.2]} 28... Re4 {[%clk 0:00:06.9]} 29.
Rb5 {[%clk 0:00:28.2]} 29... g5 {[%clk 0:00:06.1]} 30. Rc7 {[%clk 0:00:26.9]}
30... Kg7 {[%clk 0:00:04.3]} 31. g4 {[%clk 0:00:24]} 31... Kg6 {[%clk 0:00:02]}
32. Kg2 {[%clk 0:00:23.9]} 32... h5 {[%clk 0:00:01.8]} 33. f3 {[%clk 0:00:21.5]}
33... Re2+ {[%clk 0:00:01.5]} 34. Kf1 {[%clk 0:00:21.6]} 34... Ra2 {[%clk
0:00:01.9]} 35. Rc1 {[%clk 0:00:16.1]} 35... h4 {[%clk 0:00:02.8]} 36. Kg1
{[%clk 0:00:15.9]} 36... Ra3 {[%clk 0:00:03.3]} 37. Rf1 {[%clk 0:00:15.6]} 37...
Ra4 {[%clk 0:00:03.8]} 38. f4 {[%clk 0:00:12.2]} 38... Rd8 {[%clk 0:00:04.7]}
39. f5+ {[%clk 0:00:11.7]} 39... Kg7 {[%clk 0:00:04.3]} 40. fxe6 {[%clk
0:00:11.3]} 40... fxe6 {[%clk 0:00:05.2]} 41. Rb7+ {[%clk 0:00:11.4]} 41... Kg6
{[%clk 0:00:05.5]} 42. Rf6# {[%clk 0:00:11]} 1-0

[Event "*** Titled Tuesday Blitz"]
[Site "Chess.com"]
[Date "2020.05.05"]
[Round "4"]
[White "rakshi2005"]
[Black "TudorAnton"]
[Result "1-0"]
[WhiteElo "2297"]
[BlackElo "2497"]
[TimeControl "180+1"]
[EndTime "10:40:58 PDT"]
[Termination "rakshi2005 won by resignation"]

1. e4 {[%clk 0:03:00.9]} 1... e5 {[%clk 0:02:58.2]} 2. Nf3 {[%clk 0:02:58.4]}
2... Nc6 {[%clk 0:02:57.5]} 3. Bc4 {[%clk 0:02:56.2]} 3... Bc5 {[%clk
0:02:52.3]} 4. O-O {[%clk 0:02:56.1]} 4... Nf6 {[%clk 0:02:51.6]} 5. d4 {[%clk
0:02:56.1]} 5... Bxd4 {[%clk 0:02:49.3]} 6. Nxd4 {[%clk 0:02:56.1]} 6... Nxd4
{[%clk 0:02:49.8]} 7. f4 {[%clk 0:02:56.5]} 7... d6 {[%clk 0:02:42.5]} 8. fxe5
{[%clk 0:02:56.4]} 8... dxe5 {[%clk 0:02:43.4]} 9. Bg5 {[%clk 0:02:56.7]} 9...
Be6 {[%clk 0:02:41.7]} 10. Na3 {[%clk 0:02:53.4]} 10... Bxc4 {[%clk 0:02:40.8]}
11. Nxc4 {[%clk 0:02:52.1]} 11... Qe7 {[%clk 0:02:35.5]} 12. c3 {[%clk
0:02:41.7]} 12... Ne6 {[%clk 0:02:25.8]} 13. Bxf6 {[%clk 0:02:41.8]} 13... gxf6
{[%clk 0:02:26.7]} 14. b4 {[%clk 0:02:40.1]} 14... Rg8 {[%clk 0:02:22.5]} 15. g3
{[%clk 0:02:25.4]} 15... Rg6 {[%clk 0:02:12]} 16. Qd2 {[%clk 0:02:21.8]} 16...
Qd7 {[%clk 0:02:05.8]} 17. Qxd7+ {[%clk 0:02:17.9]} 17... Kxd7 {[%clk
0:02:06.7]} 18. Ne3 {[%clk 0:02:18.1]} 18... Ng5 {[%clk 0:01:59.1]} 19. Rad1+
{[%clk 0:02:10.5]} 19... Ke6 {[%clk 0:01:54.6]} 20. Nd5 {[%clk 0:02:01.1]} 20...
Rc8 {[%clk 0:01:52.4]} 21. Rde1 {[%clk 0:01:54.7]} 21... Nxe4 {[%clk 0:01:48.2]}
22. Nf4+ {[%clk 0:01:51.6]} 22... exf4 {[%clk 0:01:48.6]} 23. Rxe4+ {[%clk
0:01:51.4]} 23... Kd7 {[%clk 0:01:40.8]} 24. Rexf4 {[%clk 0:01:46]} 24... Ke7
{[%clk 0:01:38.5]} 25. Re1+ {[%clk 0:01:45.6]} 25... Kf8 {[%clk 0:01:37.9]} 26.
Rd4 {[%clk 0:01:44.6]} 26... Re8 {[%clk 0:01:37.2]} 27. Red1 {[%clk 0:01:32.3]}
27... f5 {[%clk 0:01:36.2]} 28. Rd7 {[%clk 0:01:32]} 28... Rc6 {[%clk
0:01:35.7]} 29. R1d3 {[%clk 0:01:08.8]} 29... Re2 {[%clk 0:01:33.9]} 30. a4
{[%clk 0:01:08.4]} 30... Rc2 {[%clk 0:01:31.5]} 31. Rf3 {[%clk 0:01:06.3]} 31...
Ke8 {[%clk 0:01:29.6]} 32. Rdd3 {[%clk 0:00:59.1]} 32... Rc4 {[%clk 0:01:21]}
33. Rfe3+ {[%clk 0:00:58.1]} 33... Kf8 {[%clk 0:01:20.2]} 34. Rf3 {[%clk
0:00:57.4]} 34... b6 {[%clk 0:01:18.5]} 35. Rxf5 {[%clk 0:00:56.9]} 35... R2xc3
{[%clk 0:01:17.2]} 36. Rd7 {[%clk 0:00:55.6]} 36... Rc1+ {[%clk 0:01:13.3]} 37.
Kg2 {[%clk 0:00:55.1]} 37... R4c2+ {[%clk 0:01:12.6]} 38. Kh3 {[%clk 0:00:55.2]}
38... Re2 {[%clk 0:01:03.3]} 39. Rfxf7+ {[%clk 0:00:53.5]} 39... Ke8 {[%clk
0:01:03.5]} 40. Rxc7 {[%clk 0:00:51.9]} 40... Rh1 {[%clk 0:01:03.1]} 41. Rxa7
{[%clk 0:00:34.8]} 41... h5 {[%clk 0:00:48.9]} 42. Kh4 {[%clk 0:00:31]} 42...
Rhxh2+ {[%clk 0:00:49]} 43. Kg5 {[%clk 0:00:30.2]} 43... Re5+ {[%clk 0:00:48.5]}
44. Kg6 {[%clk 0:00:18.9]} 44... Re6+ {[%clk 0:00:40.8]} 45. Kh7 {[%clk
0:00:18.3]} 45... Rd2 {[%clk 0:00:34.5]} 46. Rg7 {[%clk 0:00:17.9]} 46... Rf6
{[%clk 0:00:22.2]} 47. Rg8+ {[%clk 0:00:17.3]} 47... Rf8 {[%clk 0:00:21.9]} 48.
Ra8+ {[%clk 0:00:17.5]} 1-0

[Event "*** Titled Tuesday Blitz"]
[Site "Chess.com"]
[Date "2020.05.05"]
[Round "4"]
[White "lucasmito"]
[Black "BIG_Pirate"]
[Result "1-0"]
[WhiteElo "2425"]
[BlackElo "2299"]
[TimeControl "180+1"]
[EndTime "10:40:58 PDT"]
[Termination "lucasmito won on time"]

1. e4 {[%clk 0:03:00.9]} 1... d5 {[%clk 0:02:59.4]} 2. exd5 {[%clk 0:02:59.9]}
2... Qxd5 {[%clk 0:03:00.3]} 3. Nc3 {[%clk 0:02:57.6]} 3... Qa5 {[%clk
0:02:57.9]} 4. d4 {[%clk 0:02:57.7]} 4... Nf6 {[%clk 0:02:57.7]} 5. Nf3 {[%clk
0:02:57.8]} 5... Bg4 {[%clk 0:02:57.5]} 6. h3 {[%clk 0:02:57.3]} 6... Bh5 {[%clk
0:02:57.5]} 7. g4 {[%clk 0:02:57.6]} 7... Bg6 {[%clk 0:02:57.4]} 8. Ne5 {[%clk
0:02:58.3]} 8... e6 {[%clk 0:02:57.5]} 9. Bg2 {[%clk 0:02:57.9]} 9... c6 {[%clk
0:02:56.3]} 10. O-O {[%clk 0:02:56.2]} 10... Nbd7 {[%clk 0:02:55]} 11. Qe2
{[%clk 0:02:53.7]} 11... Nxe5 {[%clk 0:02:48.4]} 12. dxe5 {[%clk 0:02:54.6]}
12... Nd7 {[%clk 0:02:46.4]} 13. f4 {[%clk 0:02:52.5]} 13... h5 {[%clk 0:02:43]}
14. f5 {[%clk 0:02:50.1]} 14... Bh7 {[%clk 0:02:42.1]} 15. Bf4 {[%clk
0:02:26.1]} 15... O-O-O {[%clk 0:02:37.9]} 16. fxe6 {[%clk 0:02:20.9]} 16...
fxe6 {[%clk 0:02:37.1]} 17. Ne4 {[%clk 0:02:12.8]} 17... hxg4 {[%clk 0:02:32.7]}
18. hxg4 {[%clk 0:02:12.8]} 18... Nxe5 {[%clk 0:01:47.8]} 19. Rae1 {[%clk
0:01:40.5]} 19... Bxe4 {[%clk 0:01:17.7]} 20. Qxe4 {[%clk 0:01:41.4]} 20... Bc5+
{[%clk 0:00:55.4]} 21. Be3 {[%clk 0:01:39.9]} 21... Nd7 {[%clk 0:00:50.6]} 22.
a3 {[%clk 0:01:09.9]} 22... Bxe3+ {[%clk 0:00:41.1]} 23. Qxe3 {[%clk 0:00:51.8]}
23... Qc7 {[%clk 0:00:39]} 24. Qf4 {[%clk 0:00:46.4]} 24... Qxf4 {[%clk
0:00:29]} 25. Rxf4 {[%clk 0:00:47.3]} 25... Rhf8 {[%clk 0:00:25.8]} 26. Rfe4
{[%clk 0:00:42.5]} 26... e5 {[%clk 0:00:25.9]} 27. g5 {[%clk 0:00:41.9]} 27...
Rf4 {[%clk 0:00:22.6]} 28. Rxf4 {[%clk 0:00:40.7]} 28... exf4 {[%clk 0:00:22.4]}
29. Re7 {[%clk 0:00:41.6]} 29... Nc5 {[%clk 0:00:15.4]} 30. Rxg7 {[%clk
0:00:37.6]} 30... Rd1+ {[%clk 0:00:14.6]} 31. Kf2 {[%clk 0:00:33.3]} 31... Rd2+
{[%clk 0:00:15.5]} 32. Kf3 {[%clk 0:00:33.9]} 32... Rxc2 {[%clk 0:00:14.9]} 33.
g6 {[%clk 0:00:32.8]} 33... Nd3 {[%clk 0:00:09.3]} 34. Bh3+ {[%clk 0:00:30.1]}
34... Kb8 {[%clk 0:00:09.8]} 35. Rg8+ {[%clk 0:00:29.4]} 35... Kc7 {[%clk
0:00:09.5]} 36. Rc8+ {[%clk 0:00:29.7]} 36... Kb6 {[%clk 0:00:09]} 37. g7 {[%clk
0:00:30.1]} 37... Rf2+ {[%clk 0:00:05.8]} 38. Ke4 {[%clk 0:00:19.4]} 38... Nc5+
{[%clk 0:00:05.7]} 39. Kf5 {[%clk 0:00:19.7]} 39... f3 {[%clk 0:00:03]} 40. g8=Q
{[%clk 0:00:19.6]} 40... Rh2 {[%clk 0:00:02.3]} 41. b4 {[%clk 0:00:17.9]} 1-0

[Event "*** Titled Tuesday Blitz"]
[Site "Chess.com"]
[Date "2020.05.05"]
[Round "4"]
[White "mishikomchedlishvili"]
[Black "KaterynaLagno"]
[Result "1-0"]
[WhiteElo "2846"]
[BlackElo "2627"]
[TimeControl "180+1"]
[EndTime "10:40:59 PDT"]
[Termination "mishikomchedlishvili won by resignation"]

1. d4 {[%clk 0:03:00.9]} 1... Nf6 {[%clk 0:03:00]} 2. Bg5 {[%clk 0:03:00.5]}
2... d5 {[%clk 0:02:58.9]} 3. Bxf6 {[%clk 0:02:58.7]} 3... gxf6 {[%clk
0:02:59.7]} 4. e3 {[%clk 0:02:58.8]} 4... c5 {[%clk 0:02:59.8]} 5. dxc5 {[%clk
0:02:59]} 5... Nc6 {[%clk 0:02:59.7]} 6. Nf3 {[%clk 0:02:58.2]} 6... e6 {[%clk
0:02:58]} 7. Be2 {[%clk 0:02:57]} 7... Qa5+ {[%clk 0:02:43]} 8. Nbd2 {[%clk
0:02:53.5]} 8... Qxc5 {[%clk 0:02:43]} 9. O-O {[%clk 0:02:50.2]} 9... Bg7 {[%clk
0:02:43.2]} 10. e4 {[%clk 0:02:38.8]} 10... dxe4 {[%clk 0:02:18.6]} 11. Nxe4
{[%clk 0:02:38.1]} 11... Qe7 {[%clk 0:02:19.3]} 12. Nd6+ {[%clk 0:02:36.2]}
12... Kf8 {[%clk 0:02:19.8]} 13. c4 {[%clk 0:02:30.4]} 13... f5 {[%clk
0:02:19.4]} 14. Qd2 {[%clk 0:02:26.1]} 14... h5 {[%clk 0:02:17]} 15. c5 {[%clk
0:02:24.4]} 15... h4 {[%clk 0:02:15.8]} 16. Rfe1 {[%clk 0:02:16.4]} 16... Qf6
{[%clk 0:02:10.1]} 17. Rab1 {[%clk 0:02:15.1]} 17... Bh6 {[%clk 0:02:00.5]} 18.
Qc2 {[%clk 0:02:07.5]} 18... Rg8 {[%clk 0:02:00]} 19. Qc4 {[%clk 0:01:47.6]}
19... Rg4 {[%clk 0:01:54.6]} 20. Qb3 {[%clk 0:01:37.7]} 20... h3 {[%clk
0:01:39.8]} 21. g3 {[%clk 0:01:35.9]} 21... f4 {[%clk 0:01:40]} 22. Nxc8 {[%clk
0:01:26.2]} 22... Rxc8 {[%clk 0:01:39.1]} 23. Qxb7 {[%clk 0:01:26.1]} 23... Ne7
{[%clk 0:01:37.7]} 24. Ne5 {[%clk 0:01:21.3]} 24... Qxe5 {[%clk 0:01:26.2]} 25.
Bxg4 {[%clk 0:01:21.3]} 25... Qxc5 {[%clk 0:01:26.3]} 26. Bxh3 {[%clk
0:01:20.2]} 26... fxg3 {[%clk 0:01:25]} 27. hxg3 {[%clk 0:01:20.3]} 27... Nd5
{[%clk 0:01:12.9]} 28. Rbd1 {[%clk 0:01:12.7]} 28... Rd8 {[%clk 0:00:56.6]} 29.
Bg2 {[%clk 0:01:09.7]} 29... Kg7 {[%clk 0:00:43.1]} 30. Bxd5 {[%clk 0:01:06.7]}
30... exd5 {[%clk 0:00:44]} 31. Qe7 {[%clk 0:01:05]} 31... Rd6 {[%clk 0:00:44]}
32. Qe5+ {[%clk 0:01:01.5]} 32... Rf6 {[%clk 0:00:44.1]} 33. Re2 {[%clk
0:00:56.5]} 33... Kg6 {[%clk 0:00:30.2]} 34. Qxd5 {[%clk 0:00:52.4]} 34... Qc7
{[%clk 0:00:25.7]} 35. Kg2 {[%clk 0:00:48.9]} 35... Bg5 {[%clk 0:00:15.9]} 36.
Rd4 {[%clk 0:00:47.2]} 36... Qc1 {[%clk 0:00:14.2]} 37. Qe4+ {[%clk 0:00:44.2]}
37... Kg7 {[%clk 0:00:13.8]} 38. Rd5 {[%clk 0:00:40]} 38... Re6 {[%clk
0:00:12.9]} 39. Qf3 {[%clk 0:00:36.9]} 39... Rf6 {[%clk 0:00:12.8]} 40. Qg4
{[%clk 0:00:36.3]} 40... Kh6 {[%clk 0:00:12.9]} 41. Rf5 {[%clk 0:00:25.9]} 41...
Rg6 {[%clk 0:00:11.1]} 42. Rxf7 {[%clk 0:00:23.3]} 42... Qc6+ {[%clk 0:00:10.3]}
43. Qf3 {[%clk 0:00:22.1]} 43... Qc4 {[%clk 0:00:09.8]} 44. Re1 {[%clk
0:00:19.9]} 1-0

[Event "*** Titled Tuesday Blitz"]
[Site "Chess.com"]
[Date "2020.05.05"]
[Round "4"]
[White "GM_Levan_Pantsulaia"]
[Black "Zhani-Z"]
[Result "1-0"]
[WhiteElo "2767"]
[BlackElo "2520"]
[TimeControl "180+1"]
[EndTime "10:40:59 PDT"]
[Termination "GM_Levan_Pantsulaia won on time"]

1. Nf3 {[%clk 0:03:00.9]} 1... Nf6 {[%clk 0:02:58.5]} 2. g3 {[%clk 0:03:01.8]}
2... d5 {[%clk 0:02:58.5]} 3. Bg2 {[%clk 0:03:01]} 3... c6 {[%clk 0:02:58.1]} 4.
c4 {[%clk 0:03:01.2]} 4... dxc4 {[%clk 0:02:54.9]} 5. O-O {[%clk 0:03:01]} 5...
g6 {[%clk 0:02:52.5]} 6. Na3 {[%clk 0:03:00.5]} 6... Bg7 {[%clk 0:02:51.4]} 7.
Nxc4 {[%clk 0:03:00]} 7... O-O {[%clk 0:02:51.6]} 8. Qc2 {[%clk 0:02:57.8]} 8...
Nbd7 {[%clk 0:02:48.8]} 9. b3 {[%clk 0:02:56.7]} 9... Nb6 {[%clk 0:02:37.7]} 10.
Bb2 {[%clk 0:02:55.9]} 10... Be6 {[%clk 0:02:32.7]} 11. d3 {[%clk 0:02:53.1]}
11... Qc8 {[%clk 0:02:25.2]} 12. Na5 {[%clk 0:02:50.7]} 12... Nbd5 {[%clk
0:02:15.8]} 13. a3 {[%clk 0:02:48.6]} 13... Rd8 {[%clk 0:01:48.8]} 14. b4 {[%clk
0:02:46.6]} 14... Nb6 {[%clk 0:01:44.9]} 15. Rfc1 {[%clk 0:02:40.1]} 15... Bh6
{[%clk 0:01:16.3]} 16. Re1 {[%clk 0:02:25.2]} 16... Qd7 {[%clk 0:01:08.9]} 17.
Ne5 {[%clk 0:02:22.1]} 17... Qc7 {[%clk 0:01:07.8]} 18. d4 {[%clk 0:02:13.1]}
18... Ng4 {[%clk 0:00:51.9]} 19. Nxg4 {[%clk 0:02:01.5]} 19... Bxg4 {[%clk
0:00:51.2]} 20. e4 {[%clk 0:01:53.5]} 20... Rac8 {[%clk 0:00:48.6]} 21. h3
{[%clk 0:01:52.2]} 21... Be6 {[%clk 0:00:48]} 22. f4 {[%clk 0:01:52.5]} 22... f5
{[%clk 0:00:47.7]} 23. Rac1 {[%clk 0:01:40.5]} 23... fxe4 {[%clk 0:00:45.3]} 24.
Qxe4 {[%clk 0:01:40.7]} 24... Bd5 {[%clk 0:00:37.9]} 25. Qxe7 {[%clk 0:01:40.5]}
25... Bxg2 {[%clk 0:00:37.4]} 26. Qxc7 {[%clk 0:01:37.7]} 26... Rxc7 {[%clk
0:00:36.5]} 27. Kxg2 {[%clk 0:01:38.6]} 27... Bg7 {[%clk 0:00:31.1]} 28. b5
{[%clk 0:01:05]} 28... Bxd4 {[%clk 0:00:15.9]} 29. Bxd4 {[%clk 0:00:58.8]} 29...
Rxd4 {[%clk 0:00:16.8]} 30. bxc6 {[%clk 0:00:59.7]} 30... bxc6 {[%clk
0:00:16.2]} 31. Nxc6 {[%clk 0:01:00.2]} 31... Rd2+ {[%clk 0:00:15.1]} 32. Kf3
{[%clk 0:01:00.7]} 32... Kg7 {[%clk 0:00:15.1]} 33. Ne5 {[%clk 0:00:57.7]} 33...
Rxc1 {[%clk 0:00:12.6]} 34. Rxc1 {[%clk 0:00:58.6]} 34... Nd5 {[%clk 0:00:04.3]}
35. Rc5 {[%clk 0:00:57]} 35... Nf6 {[%clk 0:00:02.8]} 36. Rc7+ {[%clk
0:00:55.5]} 36... Kg8 {[%clk 0:00:02.2]} 37. Rf7 {[%clk 0:00:49.9]} 37... Nd5
{[%clk 0:00:01.4]} 38. Rxa7 {[%clk 0:00:48.8]} 38... Ra2 {[%clk 0:00:01.2]} 39.
h4 {[%clk 0:00:37.7]} 1-0